[Event "French Top 16-A 2024"]
[Site "Chartres"]
[Date "2024.06.03"]
[Round "5.13"]
[White "Saya, Ethan"]
[Black "Libiszewski, Fabien"]
[Result "0-1"]
[ECO "A68"]
[WhiteElo "2234"]
[BlackElo "2498"]
[Annotator "TA"]
[PlyCount "80"]
[EventDate "2024.06.01"]
[EventType "team-tourn"]
[EventCountry "FRA"]
[SourceTitle "playchess.com"]
[Source "ChessBase"]
[SourceQuality "1"]
[TimeControl "40/5400+30:1800+30"]

{[%evp 21,79,-6,-8,-7,0,-27,0,0,0,0,8,0,0,-8,57,-114,0,-46,0,-198,-201,-279,-254,-289,-279,-294,-297,-291,-287,-286,-283,-429,-416,-504,-494,-447,-384,-369,-351,-366,-356,-360,-378,-559,-385,-364,-370,-569,-541,-574,-530,-638,-638,-636,-638,-671,-652,-675,-676,-29999]} 1. d4 {[%emt 0:02:14]} Nf6 {[%emt 0:00:05]} 2. c4 {[%emt 0:00:38]} c5 {[%emt 0:00:05]} 3. d5 {[%emt 0:00:16]} g6 {[%emt 0:00:16]} 4. Nc3 {[%emt 0:00:12]} Bg7 {[%emt 0:00:16]} 5. e4 {[%emt 0:01:17]} O-O {[%emt 0:00:38]} 6. f4 {[%emt 0:07:02]} d6 {[%emt 0:01:19]} 7. Nf3 {[%emt 0:00:12]} e6 {[%emt 0:00:56]} 8. Bd3 {[%emt 0:01:41]} exd5 {[%emt 0:01:32]} 9. cxd5 {[%emt 0:00:08]} Re8 {[%emt 0:09:43]} 10. O-O {[%emt 0:02:16]} c4 {[%emt 0:05:03]} 11. Bc2 {[%emt 0:00:43] [#]} b5 $1 {[%emt 0:05:02] Threatening ...b4.} 12. a3 {[%emt 0:03:04][%cal Of1e1]} Na6 {[%emt 0:09:26]} 13. h3 {[%emt 0:06:21][%cal Of1e1]} b4 {[%emt 0:05:21]} 14. axb4 {[%emt 0:00:18] The position is equal.} Nxb4 {[%emt 0:00:03]} 15. Re1 {[%emt 0:03:05]} a5 {[%emt 0:06:27]} 16. Be3 {[%emt 0:03:33]} Rb8 {[%emt 0:08:55]} 17. Nd4 {[%emt 0:08:27]} Ba6 {[%emt 0:08:28]} ({Black should try} 17... Nh5 $11) 18. g4 $2 {[%emt 0:07:38] [#]} (18. Qd2 $14 {stays ahead.}) 18... Qc7 {[%emt 0:04:32]} ({Better is} 18... Bb7 $1 $17 {[%cal Rf6d5] Threatens to win with ...Nfxd5!} 19. Bb1 Nfxd5 20. exd5 Nd3 21. Bxd3 Rxe3 22. Bxc4 (22. Rxe3 $2 Bxd4 23. Bxc4 Bxe3+ 24. Kg2 Bxf4 $19) 22... Rxe1+ (22... Rxh3 23. g5 $11) 23. Qxe1 Bxd4+ 24. Kf1 Bc8) 19. Bf2 {[%emt 0:00:49]} (19. Nc6 $11) 19... Nd7 {[%emt 0:02:56]} (19... h5 $15 {should be considered.}) 20. Na4 $2 {[%emt 0:06:21] [#] Black continues to play with concentration.} (20. Nc6 $1 $11 {and White has nothing to worry.}) 20... Nc5 $1 $19 {[%emt 0:02:01]} 21. Nxc5 {[%emt 0:01:15]} dxc5 {[%emt 0:00:27]} 22. d6 {[%emt 0:01:40]} Qxd6 {[%emt 0:02:02]} 23. e5 {[%emt 0:00:26]} Qc7 {[%emt 0:03:34]} 24. Nf3 {[%emt 0:01:33]} Red8 {[%emt 0:01:04]} 25. Qc1 {[%emt 0:00:31]} Bb7 {[%emt 0:07:15]} 26. Be4 {[%emt 0:01:04]} (26. Re3 $142) 26... Nd3 {[%emt 0:01:12]} 27. Qxc4 {[%emt 0:00:23]} Bxe4 {[%emt 0:05:34]} (27... Nxb2 28. Qxc5 Qxc5 29. Bxc5 $17) 28. Qxe4 {[%emt 0:01:06]} Rxb2 {[%emt 0:02:44]} 29. Rf1 {[%emt 0:01:50]} Rb4 {[%emt 0:00:11]} 30. Qe3 {[%emt 0:00:25]} Nxf4 {[%emt 0:00:10]} (30... Rxf4 31. Bg3 Rxf3 32. Rxf3 Bxe5 (32... Nxe5 33. Rff1 $17) 33. Bxe5 Nxe5 34. Rff1 $19) 31. Qxc5 {[%emt 0:00:39]} Qb7 {[%emt 0:01:28]} 32. Be3 {[%emt 0:05:43]} (32. Qxa5 $142 Re8 (32... Nxh3+ $2 33. Kh2 $19) 33. Bg3 Bxe5 (33... Nxh3+ $2 34. Kh2 $19) 34. Rae1 Bd4+ (34... Nxh3+ $2 35. Kh1 $19) 35. Kh1) 32... Rd5 {[%emt 0:01:00]} 33. Qa7 {[%emt 0:00:54]} Nxh3+ {[%emt 0:00:28]} ({Less strong is} 33... Bxe5 34. Qxb7 Rxb7 (34... Nxh3+ 35. Kg2 $17) 35. Nxe5 Nxh3+ 36. Kh2 Rxe5 37. Bd4 $19) 34. Kh2 {[%emt 0:00:48]} (34. Kh1 $142 Qxa7 (34... Rxe5 35. Qxb7 Rxb7 36. Nxe5 $16) 35. Bxa7) 34... Qxa7 {[%emt 0:00:38]} (34... Bxe5+ 35. Nxe5 Rxe5 36. Qxb7 Rxb7 37. Bd4 $11) 35. Bxa7 {[%emt 0:00:03] [#]} Ng5 {[%emt 0:01:36][%mdl 512] White must now prevent ...Nxf3+.} 36. Ra3 {[%emt 0:02:44]} (36. Rac1 Nxf3+) 36... Rxg4 {[%emt 0:01:10]} 37. Bb8 {[%emt 0:00:31]} Nxf3+ {[%emt 0:01:01]} 38. Raxf3 {[%emt 0:00:02]} Bxe5+ {[%emt 0:00:30]} 39. Bxe5 {[%emt 0:00:06]} Rxe5 {[%emt 0:00:05]} 40. Rxf7 {[%emt 0:00:04]} Rh5# {[%emt 0:05:17] Weighted Error Value: White=0.83/Black=0.20 (precise) .  Loses game:     	White=1     	---        Mistake:       	White=5     	Black=3      Inaccurate:     	White=2     	Black=2      OK:         	White=10    	Black=13     Best:        	White=2     	Black=2      Strong:       	---       	Black=1      Brilliant:      	---       	Black=1} 0-1

[Event "French Top 16-A 2024"]
[Site "Chartres"]
[Date "2024.06.03"]
[Round "5.14"]
[White "Hejazipour, Mitra"]
[Black "Montaigne, Adrien"]
[Result "1/2-1/2"]
[ECO "E60"]
[WhiteElo "2376"]
[BlackElo "2008"]
[Annotator "RC"]
[PlyCount "136"]
[EventDate "2024.06.01"]
[EventType "team-tourn"]
[EventCountry "FRA"]
[SourceTitle "playchess.com"]
[Source "ChessBase"]
[SourceQuality "1"]
[TimeControl "40/5400+30:1800+30"]

1. Nf3 {[%emt 0:00:03]} Nf6 {[%emt 0:02:11]} 2. c4 {[%emt 0:00:34]} g6 {[%emt 0:00:08]} 3. d4 {[%emt 0:00:38]} Bg7 {[%emt 0:00:07]} 4. g3 {[%emt 0:00:09]} O-O {[%emt 0:00:15]} 5. Bg2 {[%emt 0:00:12]} d6 {[%emt 0:00:12]} 6. O-O {[%emt 0:00:13]} Nc6 {[%emt 0:00:21]} 7. d5 {[%emt 0:04:35]} Na5 {[%emt 0:00:41]} 8. Na3 {[%emt 0:00:05]} c5 {[%emt 0:02:41]} 9. Re1 {[%emt 0:00:16]} a6 {[%emt 0:05:44]} 10. e4 {[%emt 0:01:18]} Rb8 {[%emt 0:02:12]} 11. Bf1 {[%emt 0:16:17]} Bd7 {[%emt 0:11:28]} 12. Rb1 {[%emt 0:08:08]} Qc7 {[%emt 0:10:36]} 13. Bg5 {[%emt 0:09:27]} Rfe8 {[%emt 0:10:55]} 14. h3 {[%emt 0:07:25]} h6 {[%emt 0:04:09]} 15. Bf4 {[%emt 0:00:49]} b5 {[%emt 0:02:27]} 16. Qc1 {[%emt 0:11:06]} Kh7 {[%emt 0:01:39]} 17. cxb5 {[%emt 0:16:09]} axb5 {[%emt 0:04:34]} 18. b4 {[%emt 0:00:10]} Nc4 {[%emt 0:01:42]} 19. Nxc4 {[%emt 0:03:02]} bxc4 {[%emt 0:00:06]} 20. Qxc4 {[%emt 0:01:43]} Bb5 {[%emt 0:04:04]} 21. Qxc5 {[%emt 0:02:23]} Qxc5 {[%emt 0:10:55]} 22. bxc5 {[%emt 0:00:12]} Bxf1 {[%emt 0:00:19]} 23. Rxb8 {[%emt 0:02:50]} Rxb8 {[%emt 0:00:09]} 24. Kxf1 {[%emt 0:00:16]} g5 {[%emt 0:00:29]} 25. Bc1 {[%emt 0:05:38]} dxc5 {[%emt 0:02:41]} 26. Ne5 {[%emt 0:03:00]} Kg8 {[%emt 0:08:10]} 27. Nc6 {[%emt 0:00:12]} Re8 {[%emt 0:02:50]} 28. a4 {[%emt 0:02:07]} e6 {[%emt 0:02:28]} 29. d6 {[%emt 0:00:11]} Ra8 {[%emt 0:04:40]} 30. e5 {[%emt 0:03:34]} Nd7 {[%emt 0:01:27]} 31. Re4 {[%emt 0:00:27]} Ra6 {[%emt 0:02:17]} 32. Ne7+ {[%emt 0:00:05]} Kf8 {[%emt 0:00:14]} 33. f4 {[%emt 0:01:14]} gxf4 {[%emt 0:01:18]} 34. gxf4 {[%emt 0:00:02]} Nb6 {[%emt 0:01:43]} 35. f5 {[%emt 0:00:48]} exf5 {[%emt 0:00:59]} 36. Nxf5 {[%emt 0:00:01]} h5 {[%emt 0:00:22]} 37. Bg5 {[%emt 0:00:55]} c4 {[%emt 0:00:57]} 38. Re2 {[%emt 0:01:13]} Rxa4 {[%emt 0:00:25]} 39. Kg1 {[%emt 0:01:17]} Ra1+ {[%emt 0:00:42]} 40. Kh2 {[%emt 0:00:03]} Rf1 {[%emt 0:00:16]} 41. Ng3 {[%emt 0:04:30]} Rb1 {[%emt 0:04:59]} 42. Nxh5 {[%emt 0:08:51]} c3 {[%emt 0:00:52]} 43. Nxg7 {[%emt 0:10:37]} Kxg7 {[%emt 0:00:08]} 44. Kg3 {[%emt 0:00:16]} Nd7 {[%emt 0:10:19]} 45. Bf4 {[%emt 0:04:18]} Kg6 {[%emt 0:03:26]} 46. Rc2 {[%emt 0:00:46]} Nc5 {[%emt 0:03:15]} 47. Kg4 {[%emt 0:01:11]} Rg1+ {[%emt 0:00:57]} 48. Kf3 {[%emt 0:00:16]} Rf1+ {[%emt 0:03:44]} 49. Ke3 {[%emt 0:00:38]} Rh1 {[%emt 0:01:48]} 50. Bh2 {[%emt 0:00:55]} Kf5 {[%emt 0:02:46]} 51. Kd4 {[%emt 0:00:33]} Ne4 {[%emt 0:00:34]} 52. Kc4 {[%emt 0:01:34]} Rd1 {[%emt 0:01:12]} 53. h4 {[%emt 0:00:56]} Rd2 {[%emt 0:01:52]} 54. Kb3 {[%emt 0:00:08]} Rd3 {[%emt 0:01:06]} 55. Kc4 {[%emt 0:01:46]} Rd2 {[%emt 0:00:20]} 56. Kb3 {[%emt 0:00:01]} Rd3 {[%emt 0:00:07]} 57. Rg2 {[%emt 0:00:50]} Ke6 {[%emt 0:01:19]} 58. Re2 {[%emt 0:01:05]} Nd2+ {[%emt 0:00:23]} 59. Kc2 {[%emt 0:00:09]} Rh3 {[%emt 0:00:08]} 60. Bf4 {[%emt 0:00:37]} Nf3 {[%emt 0:00:27]} 61. Re3 {[%emt 0:00:33]} Nd4+ {[%emt 0:00:55]} 62. Kxc3 {[%emt 0:01:37]} Ne2+ {[%emt 0:00:10]} 63. Kc4 {[%emt 0:00:10]} Nxf4 {[%emt 0:00:10]} 64. Rxh3 {[%emt 0:00:10]} Nxh3 {[%emt 0:00:06]} 65. h5 {[%emt 0:00:36]} f5 {[%emt 0:00:51]} 66. exf6 {[%emt 0:00:45]} Kxd6 {[%emt 0:00:11]} 67. h6 {[%emt 0:00:28]} Ng5 {[%emt 0:00:04]} 68. Kd4 {[%emt 0:00:01]} Ke6 {[%emt 0:02:04]} 1/2-1/2

[Event "French Top 16-A 2024"]
[Site "Chartres"]
[Date "2024.06.03"]
[Round "5.14"]
[White "Bosc, Seraphina"]
[Black "Sochacki, Christophe"]
[Result "0-1"]
[ECO "C54"]
[WhiteElo "2220"]
[BlackElo "2451"]
[Annotator "TA"]
[PlyCount "54"]
[EventDate "2024.06.01"]
[EventType "team-tourn"]
[EventCountry "FRA"]
[SourceTitle "playchess.com"]
[Source "ChessBase"]
[SourceQuality "1"]
[TimeControl "40/5400+30:1800+30"]

{[%evp 14,54,15,11,13,1,19,-7,-3,-60,-44,-64,-63,-60,-59,-100,-103,-198,-193,-329,-203,-336,-306,-310,-329,-291,-321,-313,-225,-356,-339,-531,-387,-388,-371,-944,-922,-973,-943,-1100,-1038,-29982,-29983]} 1. e4 {[%emt 0:00:06]} e5 {[%emt 0:00:06]} 2. Nf3 {[%emt 0:00:24]} Nc6 {[%emt 0:00:06]} 3. Bc4 {[%emt 0:00:39]} Nf6 {[%emt 0:00:09]} 4. d3 {[%emt 0:00:03]} Bc5 {[%emt 0:00:06]} 5. Bg5 {[%emt 0:00:37][%cal Bc1g5,Bg5h4,Bh4g3][%mdl 32]} h6 {[%emt 0:00:50]} 6. Bh4 {[%emt 0:00:08]} g5 {[%emt 0:06:34]} 7. Bg3 {[%emt 0:00:30]} d6 {[%emt 0:00:07]} 8. c3 {[%emt 0:03:49]} a6 {[%emt 0:14:44]} 9. a4 {[%emt 0:00:39]} Ba7 {[%emt 0:01:51]} 10. a5 {[%emt 0:01:57]} Ne7 {[%emt 0:11:05] The position is equal.} 11. Qb3 {[%emt 0:04:34]} (11. Nbd2 $11) 11... O-O $15 {[%emt 0:02:50]} 12. O-O {[%emt 0:01:47]} c6 {[%emt 0:02:26] ...d5 is the strong threat.} 13. Qc2 {[%emt 0:01:08]} Ng6 {[%emt 0:03:17]} 14. Nbd2 {[%emt 0:06:15]} h5 {[%emt 0:11:53] Hoping for ...h4.} 15. d4 {[%emt 0:26:13]} (15. Nxg5 $2 h4 16. Bxh4 Nxh4 $19) (15. h4 $17 g4 16. Ng5) 15... h4 $19 {[%emt 0:05:12]} 16. dxe5 {[%emt 0:01:21]} (16. Bxe5 $142 dxe5 17. Nxg5) 16... Nh5 {[%emt 0:06:53]} (16... hxg3 $2 17. exf6 Bxf2+ (17... gxf2+ 18. Rxf2 Bxf2+ 19. Kxf2 $19) 18. Rxf2 gxf2+ 19. Kxf2 $19) 17. exd6 {[%emt 0:03:43]} (17. Bxh4 $142 Nxh4 (17... gxh4 18. exd6 Kg7 19. e5 $17) 18. exd6 Qxd6 19. Nxh4 gxh4 20. e5) 17... hxg3 {[%emt 0:00:11]} 18. hxg3 {[%emt 0:00:35]} Nxg3 {[%emt 0:07:00]} (18... Qxd6 19. e5 Nxe5 20. Nxe5 $17) 19. Rfe1 {[%emt 0:02:12]} Kg7 {[%emt 0:13:27][%cal Of8h8] [#] ( -> ...Rh8!)} (19... Qxd6 20. e5 Bf5 21. Qxf5 (21. exd6 $2 Bxc2 22. Nxg5 Kg7 $19) 21... Nxf5 22. exd6 $11) 20. Nd4 {[%emt 0:02:22]} (20. e5 Rh8 21. Nh2 Rxh2) 20... Qxd6 {[%emt 0:01:31]} 21. fxg3 {[%emt 0:03:50]} (21. Qd3 $142 Bxd4 22. cxd4) 21... Ne5 {[%emt 0:03:02]} (21... Bxd4+ 22. cxd4 Qxd4+ (22... Qxg3 23. Qc3 $14) 23. Kf1 $17) (21... Qxg3 22. Nf1 Qf4 23. Re2 $19) 22. Kf1 {[%emt 0:07:10]} (22. Re3 $142 Ng4 23. Rf3) 22... f5 {[%emt 0:01:08]} 23. Ke2 {[%emt 0:14:15]} (23. Nxf5+ $2 Bxf5 24. exf5 Qc5 $19) 23... fxe4 {[%emt 0:00:02] [#] Threatens to win with ...Bg4+.} 24. Qxe4 {[%emt 0:01:41]} (24. Kd1 e3 25. Ra4) 24... Bg4+ {[%emt 0:00:12]} 25. N2f3 {[%emt 0:03:21]} Rae8 {[%emt 0:00:30][%cal Oe5f3] White must now prevent ...Nxf3!} ({Not} 25... Nxc4 26. Qxg4 Qg6 27. Kf1 $16 (27. Nxg5 Rf6 $16) (27. Qxg5 $2 {too greedy.} Rae8+ 28. Kd1 Nxb2+ 29. Kd2 Qxg5+ 30. Nxg5 Rf2+ 31. Re2 Bxd4 $19) (27. Ne6+ Kg8 $16)) 26. Ne6+ {[%emt 0:11:21]} Bxe6 {[%emt 0:00:31]} 27. Bxe6 {[%emt 0:00:33]} Nxf3 {[%emt 0:00:43] Black took control after the opening.   Weighted Error Value: White=0.95/Black=0.23 (precise) .  Mistake:       	White=7     	---        Inaccurate:     	White=2     	Black=1      OK:         	White=4     	Black=7      Best:        	White=1     	Black=4} 0-1

[Event "French Top 16-A 2024"]
[Site "Chartres"]
[Date "2024.06.03"]
[Round "5.15"]
[White "Milliet, Sophie"]
[Black "Auvray, Juliette"]
[Result "1-0"]
[ECO "B53"]
[WhiteElo "2385"]
[BlackElo "1974"]
[Annotator "RC"]
[PlyCount "83"]
[EventDate "2024.06.01"]
[EventType "team-tourn"]
[EventCountry "FRA"]
[SourceTitle "playchess.com"]
[Source "ChessBase"]
[SourceQuality "1"]
[TimeControl "40/5400+30:1800+30"]

1. e4 {[%emt 0:00:05]} c5 {[%emt 0:00:04]} 2. Nf3 {[%emt 0:00:13]} d6 {[%emt 0:00:11]} 3. Nc3 {[%emt 0:00:30]} Nf6 {[%emt 0:01:20]} 4. d4 {[%emt 0:00:13]} cxd4 {[%emt 0:00:16]} 5. Qxd4 {[%emt 0:00:09]} Nc6 {[%emt 0:01:14]} 6. Qe3 {[%emt 0:00:14]} g6 {[%emt 0:05:00]} 7. Bc4 {[%emt 0:00:35]} Bg7 {[%emt 0:03:00]} 8. h3 {[%emt 0:00:08]} O-O {[%emt 0:02:51]} 9. O-O {[%emt 0:00:08]} Bd7 {[%emt 0:05:50]} 10. Rd1 {[%emt 0:00:24]} Rc8 {[%emt 0:09:24]} 11. Qe2 {[%emt 0:00:17]} a6 {[%emt 0:02:22]} 12. a4 {[%emt 0:00:07]} Qc7 {[%emt 0:03:41]} 13. Bg5 {[%emt 0:08:53]} Na5 {[%emt 0:04:39]} 14. Ba2 {[%emt 0:02:49]} h6 {[%emt 0:07:02]} 15. Bxf6 {[%emt 0:13:03]} Bxf6 {[%emt 0:05:23]} 16. Nd5 {[%emt 0:01:30]} Qxc2 {[%emt 0:04:28]} 17. Rd2 {[%emt 0:00:30]} Qc7 {[%emt 0:42:15]} 18. Rdd1 Qc2 {[%emt 0:00:00]} 19. Rd2 {[%emt 0:01:34]} Qxa4 {[%emt 0:00:00]} 20. Nxf6+ {[%emt 0:02:36]} Kg7 {[%emt 0:00:00]} 21. Nxd7 {[%emt 0:01:05]} Qxd7 {[%emt 0:00:00]} 22. e5 {[%emt 0:03:00]} Qa4 {[%emt 0:00:00]} 23. Qe1 {[%emt 0:08:41]} Nb3 {[%emt 0:00:00]} 24. Qd1 {[%emt 0:01:10]} Nc5 {[%emt 0:00:00]} 25. Qxa4 {[%emt 0:03:47]} Nxa4 {[%emt 0:00:00]} 26. exd6 {[%emt 0:00:33]} exd6 {[%emt 0:00:00]} 27. Bd5 {[%emt 0:01:22]} b5 {[%emt 0:00:00]} 28. b3 {[%emt 0:10:49]} Nc5 {[%emt 0:00:00]} 29. b4 {[%emt 0:00:15]} Na4 {[%emt 0:00:00]} 30. Bb3 {[%emt 0:00:22]} Rc6 {[%emt 0:00:00]} 31. Bxa4 {[%emt 0:01:06]} bxa4 {[%emt 0:00:00]} 32. Rxa4 {[%emt 0:00:06]} Rb8 {[%emt 0:00:11]} 33. Kh2 {[%emt 0:04:18]} Kf6 {[%emt 0:01:53]} 34. Rd4 {[%emt 0:02:50]} Ke7 {[%emt 0:01:01]} 35. Nd2 {[%emt 0:02:55]} Rcb6 {[%emt 0:01:46]} 36. Ne4 {[%emt 0:02:07]} R8b7 {[%emt 0:01:04]} 37. Nc3 {[%emt 0:00:25]} Ke6 {[%emt 0:01:13]} 38. Re4+ {[%emt 0:01:27]} Kd7 {[%emt 0:01:53]} 39. Nd5 {[%emt 0:00:54]} Rb5 {[%emt 0:01:14]} 40. Nf6+ {[%emt 0:01:19]} Kc7 {[%emt 0:00:37]} 41. Rxa6 {[%emt 0:30:31]} Rf5 {[%emt 0:30:28]} 42. Ne8+ {[%emt 0:01:55]} 1-0

[Event "French Top 16-A 2024"]
[Site "Chartres"]
[Date "2024.06.03"]
[Round "5.15"]
[White "Ricou, Guillaume"]
[Black "Tahay, Alexis"]
[Result "0-1"]
[ECO "B57"]
[WhiteElo "2004"]
[BlackElo "2376"]
[Annotator "RC"]
[PlyCount "58"]
[EventDate "2024.06.01"]
[EventType "team-tourn"]
[EventCountry "FRA"]
[SourceTitle "playchess.com"]
[Source "ChessBase"]
[SourceQuality "1"]
[TimeControl "40/5400+30:1800+30"]

1. e4 {[%emt 0:00:03]} c5 {[%emt 0:04:50]} 2. Nf3 {[%emt 0:00:05]} d6 {[%emt 0:00:38]} 3. d4 {[%emt 0:00:06]} cxd4 {[%emt 0:00:03]} 4. Nxd4 {[%emt 0:00:05]} Nf6 {[%emt 0:00:04]} 5. Nc3 {[%emt 0:00:13]} Nc6 {[%emt 0:00:05]} 6. Bc4 {[%emt 0:05:31]} Qb6 {[%emt 0:00:49]} 7. Be3 {[%emt 0:05:32]} Qxb2 {[%emt 0:02:34]} 8. Ndb5 {[%emt 0:03:09]} Qb4 {[%emt 0:00:40]} 9. Bd3 {[%emt 0:19:11]} Qa5 {[%emt 0:01:07]} 10. Bd2 {[%emt 0:12:30]} Qd8 {[%emt 0:03:42]} 11. O-O {[%emt 0:10:36]} a6 {[%emt 0:01:24]} 12. Na3 {[%emt 0:00:16]} e6 {[%emt 0:01:00]} 13. Nc4 {[%emt 0:04:08]} d5 {[%emt 0:03:37]} 14. exd5 {[%emt 0:01:27]} exd5 {[%emt 0:00:05]} 15. Qe2+ {[%emt 0:10:59]} Be6 {[%emt 0:01:57]} 16. Ne5 {[%emt 0:04:20]} Nxe5 {[%emt 0:00:58]} 17. Qxe5 {[%emt 0:00:05]} Bd6 {[%emt 0:03:47]} 18. Qd4 {[%emt 0:02:07]} Qc7 {[%emt 0:01:54]} 19. Qa4+ {[%emt 0:03:11]} Ke7 {[%emt 0:01:53]} 20. Qh4 {[%emt 0:02:03]} h6 {[%emt 0:04:32]} 21. Rfe1 {[%emt 0:03:46]} g5 {[%emt 0:02:54]} 22. Qd4 {[%emt 0:01:22]} Qc5 {[%emt 0:04:05]} 23. Qa4 {[%emt 0:05:23]} b5 {[%emt 0:06:31]} 24. Qb3 {[%emt 0:00:19]} Rhe8 {[%emt 0:04:56]} 25. Qb2 {[%emt 0:05:16]} Qd4 {[%emt 0:05:51]} 26. Be3 {[%emt 0:01:04]} Qb4 {[%emt 0:00:42]} 27. Qxb4 {[%emt 0:00:10]} Bxb4 {[%emt 0:00:01]} 28. Bd4 {[%emt 0:00:06]} Rac8 {[%emt 0:00:50]} 29. Nxd5+ {[%emt 0:01:25]} Nxd5 {[%emt 0:00:07]} 0-1

[Event "French Top 16-A 2024"]
[Site "Chartres"]
[Date "2024.06.03"]
[Round "5.16"]
[White "Mathieu, Phileas"]
[Black "Tamburro, Clemence"]
[Result "1-0"]
[ECO "A20"]
[WhiteElo "2302"]
[BlackElo "1747"]
[Annotator "RC"]
[PlyCount "41"]
[EventDate "2024.06.01"]
[EventType "team-tourn"]
[EventCountry "FRA"]
[SourceTitle "playchess.com"]
[Source "ChessBase"]
[SourceQuality "1"]
[TimeControl "40/5400+30:1800+30"]

1. a3 {[%emt 0:00:22]} e5 {[%emt 0:01:09]} 2. c4 {[%emt 0:00:05]} Nf6 {[%emt 0:01:17]} 3. e3 {[%emt 0:00:38]} Be7 {[%emt 0:02:57]} 4. Nc3 {[%emt 0:00:16]} O-O {[%emt 0:03:08]} 5. Qc2 {[%emt 0:00:22]} c6 {[%emt 0:08:46]} 6. Nf3 {[%emt 0:00:57]} Qc7 {[%emt 0:05:27]} 7. d4 {[%emt 0:05:34]} exd4 {[%emt 0:03:47]} 8. exd4 {[%emt 0:00:56]} Re8 {[%emt 0:04:57]} 9. Be3 {[%emt 0:01:52]} Ng4 {[%emt 0:16:46]} 10. Bd3 {[%emt 0:01:40]} g6 {[%emt 0:03:38]} 11. O-O-O {[%emt 0:02:21]} Nxe3 {[%emt 0:02:10]} 12. fxe3 {[%emt 0:00:05]} d6 {[%emt 0:02:38]} 13. h4 {[%emt 0:00:22]} Nd7 {[%emt 0:05:35]} 14. h5 {[%emt 0:01:54]} Nf8 {[%emt 0:01:05]} 15. Rdf1 {[%emt 0:00:56]} Bf6 {[%emt 0:07:07]} 16. Ne4 {[%emt 0:01:31]} Bh8 {[%emt 0:03:04]} 17. Nfg5 {[%emt 0:02:44]} f5 {[%emt 0:10:38]} 18. hxg6 {[%emt 0:02:19]} hxg6 {[%emt 0:03:59]} 19. Nxd6 {[%emt 0:02:58]} Rxe3 {[%emt 0:06:17]} 20. c5 {[%emt 0:03:46]} Bxd4 {[%emt 0:02:23]} 21. Qc4+ {[%emt 0:00:12]} 1-0

[Event "French Top 16-A 2024"]
[Site "Chartres"]
[Date "2024.06.03"]
[Round "5.16"]
[White "Hirth, Julien"]
[Black "Barbot, Pierre"]
[Result "0-1"]
[ECO "C54"]
[WhiteElo "2063"]
[BlackElo "2425"]
[Annotator "RC"]
[PlyCount "85"]
[EventDate "2024.06.01"]
[EventType "team-tourn"]
[EventCountry "FRA"]
[SourceTitle "playchess.com"]
[Source "ChessBase"]
[SourceQuality "1"]
[TimeControl "40/5400+30:1800+30"]

1. e4 {[%emt 0:00:02]} e5 {[%emt 0:00:05]} 2. Nf3 {[%emt 0:00:06]} Nc6 {[%emt 0:00:04]} 3. Bc4 {[%emt 0:00:07]} Bc5 {[%emt 0:00:05]} 4. c3 {[%emt 0:00:12]} Nf6 {[%emt 0:00:04]} 5. d4 {[%emt 0:00:18]} exd4 {[%emt 0:00:07]} 6. e5 {[%emt 0:00:18]} d5 {[%emt 0:00:07]} 7. Bb5 {[%emt 0:00:11]} Ne4 {[%emt 0:00:05]} 8. cxd4 {[%emt 0:00:11]} Bb6 {[%emt 0:00:05]} 9. Nc3 {[%emt 0:00:18]} O-O {[%emt 0:00:06]} 10. Be3 {[%emt 0:00:19]} Bg4 {[%emt 0:05:05]} 11. h3 {[%emt 0:00:28]} Bh5 {[%emt 0:00:05]} 12. Qc2 {[%emt 0:00:17]} Bg6 {[%emt 0:00:06]} 13. Qb3 {[%emt 0:00:29]} Ne7 {[%emt 0:00:05]} 14. O-O {[%emt 0:00:33]} c6 {[%emt 0:00:03]} 15. Bd3 {[%emt 0:00:20]} Nd2 {[%emt 0:04:13]} 16. Nxd2 {[%emt 0:00:27]} Bxd3 {[%emt 0:00:05]} 17. Rfe1 {[%emt 0:00:07]} Bg6 {[%emt 0:00:16]} 18. Na4 {[%emt 0:00:45]} Nf5 {[%emt 0:03:37]} 19. Nxb6 {[%emt 0:00:17]} Qxb6 {[%emt 0:00:15]} 20. Qc3 {[%emt 0:00:43]} f6 {[%emt 0:06:59]} 21. Nf3 {[%emt 0:00:44]} Rae8 {[%emt 0:00:06]} 22. Bf4 {[%emt 0:01:21]} Qd8 {[%emt 0:13:41]} 23. b4 {[%emt 0:20:47]} Ne7 {[%emt 0:09:16]} 24. a4 {[%emt 0:35:57]} Be4 {[%emt 0:05:45]} 25. exf6 {[%emt 0:16:37]} Ng6 {[%emt 0:09:17]} 26. Bg5 {[%emt 0:01:37]} gxf6 {[%emt 0:00:05]} 27. Bh6 {[%emt 0:00:17]} Rf7 {[%emt 0:00:04]} 28. b5 {[%emt 0:03:49]} cxb5 {[%emt 0:05:08]} 29. axb5 {[%emt 0:00:06]} Qb6 {[%emt 0:00:03]} 30. Qa5 {[%emt 0:03:07]} Rfe7 {[%emt 0:04:54]} 31. Qxa7 {[%emt 0:02:51]} Qxa7 {[%emt 0:00:53]} 32. Rxa7 {[%emt 0:00:07]} Bxf3 {[%emt 0:00:02]} 33. Rxe7 {[%emt 0:00:08]} Rxe7 {[%emt 0:00:04]} 34. gxf3 {[%emt 0:00:11]} Nh4 {[%emt 0:00:08]} 35. Ra8+ {[%emt 0:04:35]} Kf7 {[%emt 0:00:02]} 36. Rd8 {[%emt 0:02:55]} Ke6 {[%emt 0:05:35]} 37. Bf4 {[%emt 0:02:18]} Rd7 {[%emt 0:03:52]} 38. Rb8 {[%emt 0:00:39]} Nxf3+ {[%emt 0:00:16]} 39. Kg2 {[%emt 0:00:32]} Nxd4 {[%emt 0:00:05]} 40. b6 {[%emt 0:00:23]} Nc6 {[%emt 0:00:36]} 41. Rc8 {[%emt 0:16:12]} d4 {[%emt 0:02:09]} 42. Kf1 {[%emt 0:05:58]} Re7 {[%emt 0:03:19]} 43. Ke2 {[%emt 0:04:30]} 0-1